[Event "360 One Wealth GP-3 2024"]
[Site "Mumbai"]
[Date "2024.02.07"]
[Round "3.10"]
[White "Devesh Anil Ambre"]
[Black "Yuti Mayur Patel"]
[Result "1/2-1/2"]
[ECO "D35"]
[WhiteElo "1198"]
[BlackElo "1426"]
[Annotator "NA RC"]
[PlyCount "117"]
[EventDate "2024.02.04"]
[EventType "swiss"]
[EventCountry "IND"]
[SourceTitle "playchess.com"]
[Source "ChessBase"]
[SourceQuality "1"]
[TimeControl "5400+30"]

1. d4 {[%emt 0:02:01]} d5 {[%emt 0:00:02]} 2. c4 {[%emt 0:00:07]} e6 {[%emt 0:00:02]} 3. Nc3 {[%emt 0:00:06]} Nf6 {[%emt 0:00:08]} 4. cxd5 {[%emt 0:00:18]} exd5 {[%emt 0:00:03]} 5. Bg5 {[%emt 0:00:09]} c6 {[%emt 0:00:56]} 6. e3 {[%emt 0:00:18]} h6 {[%emt 0:03:14]} 7. Bh4 {[%emt 0:00:55]} Bd6 {[%emt 0:04:28]} 8. Bd3 {[%emt 0:03:30]} Nbd7 {[%emt 0:02:09]} 9. Nf3 {[%emt 0:06:26]} O-O {[%emt 0:00:37]} 10. O-O {[%emt 0:11:02]} g5 {[%emt 0:03:16]} 11. Nxg5 {[%emt 0:16:53]} hxg5 {[%emt 0:00:36]} 12. Bxg5 {[%emt 0:00:11]} Kg7 {[%emt 0:15:50]} 13. h4 {[%emt 0:22:06]} Rh8 {[%emt 0:03:53]} 14. h5 {[%emt 0:01:46]} Qg8 {[%emt 0:04:41]} 15. h6+ {[%emt 0:06:58]} Kf8 {[%emt 0:00:05]} 16. f4 {[%emt 0:02:27]} Be7 {[%emt 0:11:32]} 17. e4 {[%emt 0:10:39]} Nxe4 {[%emt 0:03:17]} 18. Bxe4 {[%emt 0:01:43]} Bxg5 {[%emt 0:04:37]} 19. fxg5 {[%emt 0:00:28]} dxe4 {[%emt 0:02:04]} 20. Nxe4 {[%emt 0:00:34]} Ke7 {[%emt 0:05:01]} 21. Qe2 {[%emt 0:02:33]} Kd8 {[%emt 0:01:03]} 22. Nd6 {[%emt 0:01:04]} Rh7 {[%emt 0:01:08]} 23. Qh5 {[%emt 0:06:31]} Nf8 {[%emt 0:03:58]} 24. Nxf7+ {[%emt 0:01:34]} Kc7 {[%emt 0:00:26]} 25. Ne5 {[%emt 0:02:00]} Be6 {[%emt 0:00:50]} 26. Rf6 {[%emt 0:00:36]} Rd8 {[%emt 0:00:30]} 27. g6 {[%emt 0:00:25]} Re7 {[%emt 0:00:02]} 28. Qh2 {[%emt 0:00:31]} Kc8 {[%emt 0:00:17]} 29. Rd1 {[%emt 0:00:34]} Bxa2 {[%emt 0:01:05]} 30. h7 {[%emt 0:00:33]} Nxh7 {[%emt 0:00:16]} 31. gxh7 {[%emt 0:00:24]} Rxh7 {[%emt 0:00:01]} 32. Qf4 {[%emt 0:00:29]} Bd5 {[%emt 0:00:18]} 33. Rd2 {[%emt 0:00:30]} Re7 {[%emt 0:01:01]} 34. Ng6 {[%emt 0:00:35]} Re1+ {[%emt 0:00:39]} 35. Kf2 {[%emt 0:00:24]} Ree8 {[%emt 0:01:51]} 36. Re2 {[%emt 0:00:34]} Rxe2+ {[%emt 0:02:16]} 37. Kxe2 {[%emt 0:00:02]} Qe8+ {[%emt 0:00:20]} 38. Kf2 {[%emt 0:00:55]} Qe4 {[%emt 0:01:27]} 39. Qxe4 {[%emt 0:00:36]} Bxe4 {[%emt 0:00:02]} 40. Ne7+ {[%emt 0:00:29]} Kc7 {[%emt 0:00:57]} 41. Rf4 {[%emt 0:00:29]} Bb1 {[%emt 0:01:51]} 42. g4 {[%emt 0:00:24]} Kd6 {[%emt 0:06:34]} 43. Nf5+ {[%emt 0:00:37]} Ke6 {[%emt 0:00:10]} 44. Ng7+ {[%emt 0:00:26]} Ke7 {[%emt 0:00:35]} 45. Nf5+ {[%emt 0:00:20]} Kd7 {[%emt 0:03:51]} 46. Ng7 {[%emt 0:00:32]} Ba2 {[%emt 0:01:27]} 47. Kg3 {[%emt 0:00:41]} Rg8 {[%emt 0:00:28]} 48. Nh5 {[%emt 0:00:18]} Rg5 {[%emt 0:01:35]} 49. Kh4 {[%emt 0:00:40]} Rb5 {[%emt 0:00:01]} 50. Rf2 {[%emt 0:00:35]} Rb4 {[%emt 0:00:08]} 51. Rd2 {[%emt 0:00:18]} a5 {[%emt 0:02:56]} 52. Kg5 {[%emt 0:00:22]} Rb5+ {[%emt 0:00:21]} 53. Kh6 {[%emt 0:00:36]} Kd6 {[%emt 0:00:59]} 54. g5 {[%emt 0:00:41]} Be6 {[%emt 0:01:24]} 55. g6 {[%emt 0:00:30]} Rb3 {[%emt 0:00:38]} 56. Nf6 {[%emt 0:00:32]} Rh3+ {[%emt 0:00:11]} 57. Kg7 {[%emt 0:00:28]} b5 {[%emt 0:02:10]} 58. Ne4+ {[%emt 0:00:16]} Kd5 {[%emt 0:02:39]} 59. Ng5 {[%emt 0:00:39]} 1/2-1/2

[Event "360 One Wealth GP-3 2024"]
[Site "Mumbai"]
[Date "2024.02.07"]
[Round "3.12"]
[White "Gogri Vedaant"]
[Black "Kulkarni, Vikramaditya"]
[Result "0-1"]
[ECO "B00"]
[WhiteElo "1229"]
[BlackElo "2193"]
[Annotator "TA"]
[PlyCount "70"]
[EventDate "2024.02.04"]
[EventType "swiss"]
[EventCountry "IND"]
[SourceTitle "playchess.com"]
[Source "ChessBase"]
[SourceQuality "1"]
[TimeControl "5400+30"]

{[%evp 9,70,126,123,113,158,143,139,139,145,131,210,184,232,227,299,230,239,217,251,165,273,287,306,311,312,250,262,248,279,278,258,25,29,23,27,33,49,52,62,54,69,75,75,74,71,8,6,-16,-27,-115,-94,-218,-218,-220,-249,-270,-263,-350,-341,-368,-337,-425,-412]} 1. e4 {[%emt 0:01:03]} g5 {[%emt 0:00:29]} 2. d4 {[%emt 0:01:42]} g4 {[%emt 0:00:02]} 3. Nc3 {[%emt 0:01:06]} h5 {[%emt 0:01:49]} 4. Bc4 {[%emt 0:01:21]} c6 {[%emt 0:00:24]} 5. a4 {[%emt 0:01:00]} d5 {[%emt 0:09:08]} 6. exd5 {[%emt 0:02:49]} cxd5 {[%emt 0:02:12]} 7. Bxd5 {[%emt 0:03:01]} Nc6 {[%emt 0:00:45]} 8. Nge2 {[%emt 0:02:33] White is clearly better.} Bg7 {[%emt 0:00:02]} 9. Be3 {[%emt 0:02:22]} Nb4 {[%emt 0:05:21]} (9... Kf8 $16 {was necessary.} 10. Bb3 Nh6) 10. Bb3 $18 {[%emt 0:02:52]} b6 {[%emt 0:08:37]} (10... Nf6 $142 11. O-O Nfd5 12. Nxd5 Nxd5) 11. Nf4 {[%emt 0:08:43] And now Qe2 would win.} Bb7 {[%emt 0:00:00]} 12. d5 {[%emt 0:05:06]} Kf8 {[%emt 0:03:10]} 13. Bd4 {[%emt 0:02:52]} Nf6 {[%emt 0:15:21]} 14. Be5 {[%emt 0:03:57] Black must now prevent Qd4.} Rc8 {[%emt 0:06:19]} (14... Na6 $142 15. h4 gxh3 16. Rxh3 Nc5) 15. O-O {[%emt 0:02:44]} Kg8 {[%emt 0:04:48]} 16. Re1 {[%emt 0:04:03]} Rh6 {[%emt 0:02:25]} 17. Bxf6 {[%emt 0:02:41]} Bxf6 {[%emt 0:00:59] [#]} 18. Nxh5 $1 {[%emt 0:01:40][%mdl 512]} Bxc3 {[%emt 0:03:40]} (18... Rxh5 19. Qxg4+) 19. bxc3 {[%emt 0:02:17]} Nxd5 {[%emt 0:00:26]} 20. Bxd5 {[%emt 0:01:55]} (20. Qxg4+ $18 Rg6 21. Qe4 Rxc3 22. Qh4) 20... Qxd5 $11 {[%emt 0:06:02]} 21. Qxd5 {[%emt 0:01:45]} Bxd5 {[%emt 0:00:02]} 22. Nf4 {[%emt 0:03:27]} Bc6 {[%emt 0:02:16]} 23. Rxe7 {[%emt 0:02:18]} a5 {[%emt 0:00:03]} 24. Re3 {[%emt 0:02:24]} Kf8 {[%emt 0:02:02]} 25. Nd3 {[%emt 0:01:48]} Rd6 {[%emt 0:03:32]} 26. h3 {[%emt 0:04:27]} Be8 {[%emt 0:02:18]} 27. Nf4 {[%emt 0:02:46]} ({Of course not} 27. hxg4 Rxc3 28. g5 Rxc2 $11) (27. Nb2 $16) 27... Rc4 {[%emt 0:01:02][%csl LRa4,LRf4]} 28. Nd3 {[%emt 0:02:18]} Rxc3 {[%emt 0:04:24]} 29. Re4 {[%emt 0:01:56]} (29. hxg4 $11 {remains equal.} Rxc2 30. Ne5) 29... gxh3 $17 {[%emt 0:02:00] Black is more active.} 30. Rh4 {[%emt 0:04:16] [#] White does not recover from this.} (30. gxh3 $17 Rxc2 31. Ne5) 30... hxg2 $1 $19 {[%emt 0:00:28]} 31. Rh8+ {[%emt 0:00:38]} Ke7 {[%emt 0:00:10]} 32. Kxg2 {[%emt 0:01:09]} Rxc2 {[%emt 0:01:01] Strongly threatening ...Bc6+.} 33. Re1+ {[%emt 0:00:49]} Re6 {[%emt 0:00:02]} 34. Rxe6+ {[%emt 0:00:44]} fxe6 {[%emt 0:00:02]} 35. Rh7+ {[%emt 0:00:36]} Kd6 {[%emt 0:00:27] Weighted Error Value: White=0.46/Black=0.20 (precise) .  Missed win:     	White=1     	---        Mistake:       	White=3     	Black=3      Inaccurate:     	White=2     	Black=2      OK:         	White=8     	Black=9      Best:        	---       	Black=3      Strong:       	---       	Black=1} 0-1

[Event "360 One Wealth GP-3 2024"]
[Site "Mumbai"]
[Date "2024.02.07"]
[Round "3.13"]
[White "Kherdekar Arnav"]
[Black "Avi Chugh"]
[Result "1-0"]
[ECO "B08"]
[WhiteElo "1693"]
[BlackElo "1126"]
[Annotator "NA RC"]
[PlyCount "87"]
[EventDate "2024.02.04"]
[EventType "swiss"]
[EventCountry "IND"]
[SourceTitle "playchess.com"]
[Source "ChessBase"]
[SourceQuality "1"]
[TimeControl "5400+30"]

1. d4 {[%emt 0:37:10]} Nf6 {[%emt 0:00:13]} 2. Nf3 {[%emt 0:00:06]} g6 {[%emt 0:00:13]} 3. Nc3 {[%emt 0:00:11]} Bg7 {[%emt 0:00:07]} 4. e4 {[%emt 0:00:06]} d6 {[%emt 0:00:35]} 5. h3 O-O {[%emt 0:00:19]} 6. Bf4 c5 {[%emt 0:17:04]} 7. d5 a6 {[%emt 0:03:04]} 8. a4 Qa5 {[%emt 0:00:38]} 9. Bd3 Nbd7 {[%emt 0:04:48]} 10. O-O Qc7 {[%emt 0:01:47]} 11. Nd2 Rb8 {[%emt 0:17:10]} 12. Re1 Nh5 {[%emt 0:03:15]} 13. Bh2 Be5 {[%emt 0:06:50]} 14. Nc4 Bxh2+ {[%emt 0:08:14]} 15. Kxh2 Nb6 {[%emt 0:13:09]} 16. Ne3 Nf6 {[%emt 0:07:42]} 17. Bf1 Nbd7 {[%emt 0:08:17]} 18. a5 b5 {[%emt 0:02:22]} 19. axb6 Qxb6 {[%emt 0:02:11]} 20. Nc4 Qc7 {[%emt 0:02:49]} 21. b3 {[%emt 0:00:09]} Bb7 {[%emt 0:02:08]} 22. Na5 {[%emt 0:00:12]} Ra8 {[%emt 0:01:25]} 23. Qd2 {[%emt 0:01:53]} Rfe8 {[%emt 0:03:18]} 24. Nxb7 {[%emt 0:02:16]} Qxb7 {[%emt 0:03:19]} 25. Ra5 {[%emt 0:01:14]} Qb6 {[%emt 0:01:36]} 26. Rea1 {[%emt 0:00:03]} e6 {[%emt 0:03:57]} 27. Rxa6 Rxa6 {[%emt 0:00:40]} 28. Rxa6 {[%emt 0:01:27]} Qb8 29. Kg1 {[%emt 0:03:39]} exd5 {[%emt 0:01:52]} 30. exd5 {[%emt 0:00:02]} Ne5 {[%emt 0:01:10]} 31. Qf4 {[%emt 0:00:22]} Kg7 {[%emt 0:00:53]} 32. Bb5 {[%emt 0:03:31]} Rd8 {[%emt 0:00:50]} 33. Qd2 {[%emt 0:00:19]} Qb7 {[%emt 0:02:06]} 34. f4 {[%emt 0:00:37]} Ned7 {[%emt 0:01:27]} 35. Rxd6 {[%emt 0:00:04]} Qa7 {[%emt 0:02:36]} 36. Bxd7 {[%emt 0:00:29]} Nxd7 {[%emt 0:00:43]} 37. Qe3 {[%emt 0:00:26]} Rf8 {[%emt 0:00:45]} 38. Ne4 {[%emt 0:01:14]} Qa1+ {[%emt 0:00:31]} 39. Kh2 {[%emt 0:00:14]} Nb8 {[%emt 0:00:23]} 40. Qxc5 {[%emt 0:00:36]} Qe1 {[%emt 0:00:25]} 41. Qd4+ {[%emt 0:00:14]} Kg8 {[%emt 0:00:20]} 42. Nf6+ {[%emt 0:00:14]} Kh8 {[%emt 0:00:05]} 43. Nh5+ {[%emt 0:00:22]} Kg8 {[%emt 0:00:07]} 44. Qg7# {[%emt 0:00:05]} 1-0

[Event "360 One Wealth GP-3 2024"]
[Site "Mumbai"]
[Date "2024.02.07"]
[Round "3.14"]
[White "Joglekar, Abhijit"]
[Black "Tanmay Sanjay More"]
[Result "1-0"]
[ECO "D38"]
[WhiteElo "1502"]
[BlackElo "1156"]
[Annotator "NA RC"]
[PlyCount "41"]
[EventDate "2024.02.04"]
[EventType "swiss"]
[EventCountry "IND"]
[SourceTitle "playchess.com"]
[Source "ChessBase"]
[SourceQuality "1"]
[TimeControl "5400+30"]

1. d4 {[%emt 0:00:19]} Nf6 {[%emt 0:00:15]} 2. c4 {[%emt 0:06:15]} e6 {[%emt 0:00:20]} 3. Nf3 d5 {[%emt 0:01:22]} 4. Nc3 {[%emt 0:00:25]} Bb4 {[%emt 0:00:17]} 5. Qc2 {[%emt 0:00:25]} Ne4 {[%emt 0:01:35]} 6. a3 {[%emt 0:02:05]} Bxc3+ {[%emt 0:01:36]} 7. bxc3 {[%emt 0:00:07]} c5 {[%emt 0:01:34]} 8. e3 {[%emt 0:02:27]} Qa5 {[%emt 0:00:27]} 9. Bb2 {[%emt 0:01:05]} Nd7 {[%emt 0:04:08]} 10. Bd3 {[%emt 0:02:01]} f5 {[%emt 0:01:02]} 11. O-O {[%emt 0:00:34]} Nb6 {[%emt 0:02:51]} 12. cxd5 {[%emt 0:03:55]} exd5 {[%emt 0:00:34]} 13. c4 {[%emt 0:04:24]} Be6 {[%emt 0:06:50]} 14. cxd5 {[%emt 0:06:30]} Bxd5 {[%emt 0:00:21]} 15. dxc5 {[%emt 0:00:41]} Na4 {[%emt 0:04:21]} 16. Bd4 {[%emt 0:04:07]} O-O {[%emt 0:02:50]} 17. Bc4 {[%emt 0:08:40]} Bf7 {[%emt 0:10:30]} 18. Ne5 {[%emt 0:06:09]} Ng5 {[%emt 0:06:23]} 19. Nxf7 {[%emt 0:04:46]} Nxf7 {[%emt 0:00:07]} 20. Qxf5 {[%emt 0:00:49]} Kh8 {[%emt 0:08:51]} 21. Qg4 {[%emt 0:01:28]} 1-0

[Event "360 One Wealth GP-3 2024"]
[Site "Mumbai"]
[Date "2024.02.07"]
[Round "3.15"]
[White "Pawar Sohum"]
[Black "Shaurya Kaushal Shah"]
[Result "1/2-1/2"]
[ECO "C12"]
[WhiteElo "1442"]
[BlackElo "1063"]
[Annotator "NA RC"]
[PlyCount "156"]
[EventDate "2024.02.04"]
[EventType "swiss"]
[EventCountry "IND"]
[SourceTitle "playchess.com"]
[Source "ChessBase"]
[SourceQuality "1"]
[TimeControl "5400+30"]

1. e4 e6 2. d4 d5 3. Nc3 Nf6 4. Bg5 h6 5. Bxf6 Qxf6 6. exd5 Bb4 7. Bb5+ Bd7 8. Bxd7+ Nxd7 9. dxe6 {[%emt 23:51:39]} Bxc3+ 10. bxc3 {[%emt 0:01:09]} Qxe6+ 11. Qe2 {[%emt 0:00:57]} Qxe2+ 12. Nxe2 {[%emt 0:00:35]} O-O-O 13. O-O-O {[%emt 0:05:19]} Nf6 14. Ng3 {[%emt 0:03:57]} Rd5 15. c4 Rd7 16. Rhe1 Re8 17. Rxe8+ Nxe8 18. Re1 Nd6 19. c5 Nb5 20. Re8+ {[%emt 0:32:07]} Rd8 21. Rxd8+ {[%emt 0:00:40]} Kxd8 22. Ne2 {[%emt 0:00:48]} c6 23. Kd2 {[%emt 0:02:24]} Kd7 24. Kd3 {[%emt 0:02:23]} Nc7 25. c4 b6 26. cxb6 axb6 27. Ke4 Kd6 28. f4 Ne8 29. h3 g6 30. g4 Nf6+ 31. Kd3 h5 32. g5 Nd7 33. Ke4 f5+ 34. Ke3 Nb8 35. Nc1 Na6 36. Nd3 b5 37. cxb5 cxb5 38. a3 Nc7 39. Ne5 Nd5+ 40. Kf3 Ne7 41. Ke2 Ke6 42. h4 Kd6 43. Kd2 Ke6 44. Kc2 Kd6 45. Kb3 Kd5 46. Kb4 Kxd4 47. Kxb5 Ke4 48. Kc5 Kxf4 49. Kd6 Ke4 50. Ke6 f4 51. a4 Nc8 52. Kf6 Ne7 53. a5 Nc6 54. a6 Na7 55. Nc4 Kd3 56. Kxg6 Kxc4 57. Kxh5 f3 {[%emt 2:04:57]} 58. g6 f2 {[%emt 0:00:09]} 59. g7 f1=Q {[%emt 0:00:18]} 60. g8=Q+ Kb4 {[%emt 0:02:00]} 61. Qb8+ Ka5 {[%emt 0:03:59]} 62. Qxa7 Qf5+ {[%emt 0:01:24]} 63. Kh6 Qf6+ {[%emt 0:00:15]} 64. Kh7 Qxh4+ 65. Kg6 {[%emt 0:01:44]} Qe4+ {[%emt 0:00:19]} 66. Kg7 {[%emt 0:03:46]} Qg2+ {[%emt 0:00:40]} 67. Kf7 {[%emt 0:00:29]} Qf1+ {[%emt 0:00:17]} 68. Ke7 {[%emt 0:00:46]} Qe2+ {[%emt 0:00:45]} 69. Kd7 {[%emt 0:00:16]} Qxa6 {[%emt 0:01:01]} 70. Qc7+ {[%emt 0:00:22]} Qb6 {[%emt 0:00:25]} 71. Qc3+ {[%emt 0:00:10]} Qb4 {[%emt 0:00:55]} 72. Qf6 {[%emt 0:00:53]} Qb5+ {[%emt 0:00:23]} 73. Ke7 {[%emt 0:00:09]} Qc5+ {[%emt 0:00:44]} 74. Kd7 {[%emt 0:00:15]} Qa7+ {[%emt 0:00:30]} 75. Ke8 {[%emt 0:00:08]} Qb8+ {[%emt 0:00:36]} 76. Kf7 {[%emt 0:00:04]} Qb7+ {[%emt 0:00:38]} 77. Kg8 {[%emt 0:00:07]} Qc8+ {[%emt 0:00:18]} 78. Kh7 {[%emt 0:00:08]} Qb7+ {[%emt 0:00:53]} 1/2-1/2

[Event "360 One Wealth GP-3 2024"]
[Site "Mumbai"]
[Date "2024.02.08"]
[Round "4.1"]
[White "Kush Ajay Agarwal"]
[Black "Raghav, Srivathsav V"]
[Result "1/2-1/2"]
[ECO "B15"]
[WhiteElo "1458"]
[BlackElo "2017"]
[Annotator "TA"]
[PlyCount "111"]
[EventDate "2024.02.04"]
[EventType "swiss"]
[EventCountry "IND"]
[SourceTitle "playchess.com"]
[Source "ChessBase"]
[SourceQuality "1"]
[TimeControl "5400+30"]

{[%evp 20,111,9,-6,32,39,90,104,91,80,88,23,27,33,25,25,27,23,39,33,60,37,100,59,77,31,37,0,0,0,0,-2,9,-30,-30,-32,-30,-18,-18,-41,-8,-86,-6,-8,-2,0,0,0,-3,-3,0,-45,-45,-39,-45,-39,-39,-59,0,0,0,0,0,0,0,0,0,0,0,0,0,-8,-8,-58,-8,-2698,-2208,-29973,-29974,-29977,-29978,-29978,-29977,-8,-8,-8,-8,-8,-8,-8,-8,-8,-8,-8]} 1. e4 {[%emt 0:00:08]} g6 {[%emt 0:14:00]} 2. d4 {[%emt 0:00:18]} Bg7 {[%emt 0:00:08]} 3. Nf3 {[%emt 0:00:04]} d6 {[%emt 0:00:08]} 4. Bc4 {[%emt 0:00:10]} Nf6 {[%emt 0:00:26]} 5. Nc3 {[%emt 0:01:07]} O-O {[%emt 0:02:45]} 6. h3 {[%emt 0:01:03]} c6 {[%emt 0:00:07]} 7. O-O {[%emt 0:00:56]} d5 {[%emt 0:00:32]} 8. Bd3 {[%emt 0:01:35]} dxe4 {[%emt 0:02:27]} 9. Nxe4 {[%emt 0:00:38]} Nxe4 {[%emt 0:02:22]} 10. Bxe4 {[%emt 0:00:02]} Nd7 {[%emt 0:00:18]} 11. c4 {[%emt 0:05:09]} Nb6 {[%emt 0:01:10]} 12. b3 {[%emt 0:00:08]} f5 {[%emt 0:12:12]} (12... Nd7 $14) 13. Bc2 $16 {[%emt 0:00:59]} c5 {[%emt 0:00:08] White is better.} 14. Bb2 {[%emt 0:00:20]} (14. Re1 {is interesting.} cxd4 15. Bb2 d3 16. Bxg7 dxc2 17. Qd4) 14... cxd4 {[%emt 0:00:27]} 15. Bxd4 {[%emt 0:01:47] White is more active.} (15. Re1 $16) 15... Bxd4 $11 {[%emt 0:01:10]} 16. Qxd4 {[%emt 0:00:18]} Qxd4 {[%emt 0:00:59]} 17. Nxd4 {[%emt 0:00:03]} e5 $1 {[%emt 0:00:14]} 18. Nf3 {[%emt 0:01:18]} e4 {[%emt 0:01:23]} 19. Nd4 {[%emt 0:01:08]} a5 {[%emt 0:00:57]} 20. Rfe1 {[%emt 0:01:58]} Re8 {[%emt 0:08:23]} (20... Nd7 $14) 21. Nb5 {[%emt 0:00:27]} Re7 {[%emt 0:02:24] Prevents Nc7} 22. Rad1 {[%emt 0:00:29]} (22. f3 $16) 22... Bd7 $1 $14 {[%emt 0:01:42]} 23. Nc7 {[%emt 0:01:42][%cal Oc4c5] [#] Black must now prevent c5!} Rc8 {[%emt 0:01:13]} 24. Nd5 {[%emt 0:00:01]} Nxd5 {[%emt 0:00:30]} 25. Rxd5 {[%emt 0:00:03]} b6 {[%emt 0:01:59]} 26. Red1 {[%emt 0:00:38]} Bc6 {[%emt 0:01:19]} 27. Rd8+ {[%emt 0:00:20]} Rxd8 {[%emt 0:00:07]} 28. Rxd8+ $15 {[%emt 0:00:03][%mdl 4096] Endgame. KRB-KRB} Kf7 {[%emt 0:00:32]} 29. Kf1 {[%emt 0:00:28]} Ke6 {[%emt 0:00:57]} 30. Ke2 {[%emt 0:00:15]} (30. Rb8 $11) 30... Ke5 {[%emt 0:05:56]} ({Black should play} 30... Re8 $17 31. Rd2 Ke5) 31. Rb8 $11 {[%emt 0:00:52]} Rb7 {[%emt 0:01:56]} 32. Rc8 {[%emt 0:07:45]} Bd7 {[%emt 0:00:40]} 33. Rh8 {[%emt 0:00:20]} Be6 {[%emt 0:00:48]} 34. Re8 {[%emt 0:00:13]} Rd7 {[%emt 0:01:07]} 35. Rb8 {[%emt 0:00:24]} Rd6 {[%emt 0:01:30]} 36. c5 {[%emt 0:00:39]} bxc5 {[%emt 0:00:24][%cal Oa5a4]} 37. Rb5 {[%emt 0:00:04][%csl LRa5,LRc5]} Kd4 {[%emt 0:09:56][%cal Oa5a4] aiming for ...a4!} 38. Rxa5 {[%emt 0:00:11]} f4 {[%emt 0:00:36]} (38... c4 $15 39. bxc4 Bxc4+ 40. Ke1 h5) 39. Ra4+ {[%emt 0:05:29]} c4 {[%emt 0:00:33]} 40. bxc4 {[%emt 0:02:54]} Bxc4+ {[%emt 0:00:11]} 41. Ke1 {[%emt 0:00:04]} Ra6 {[%emt 0:02:07]} 42. Rxa6 {[%emt 0:02:19]} Bxa6 {[%emt 0:00:08] KB-KB} 43. g3 {[%emt 0:00:15]} fxg3 {[%emt 0:03:27]} 44. fxg3 {[%emt 0:00:01]} Ke3 45. Bb3 {[%emt 0:00:46]} Kf3 {[%emt 0:01:42]} 46. Bg8 {[%emt 0:00:01]} ({White should try} 46. g4 $1 $11) 46... h6 {[%emt 0:00:40]} ({Much worse is} 46... Kxg3 47. Bxh7 g5 48. Bxe4 $11) (46... h5 $1 $15 47. Bf7 Kxg3 48. Bxg6 h4 49. Bxe4 Kxh3) 47. h4 $2 {[%emt 0:01:11][%mdl 8192]} (47. Bh7 $11) 47... Kxg3 $19 {[%emt 0:00:53]} 48. Bh7 {[%emt 0:00:07]} e3 {[%emt 0:00:39]} 49. Bxg6 {[%emt 0:01:11]} Kxh4 {[%emt 0:00:02]} 50. a4 {[%emt 0:00:38]} h5 {[%emt 0:02:13]} ({Not} 50... e2 51. Be8 $14) 51. Be8 {[%emt 0:00:17]} Kg4 {[%emt 0:01:19] The position is equal.} 52. Bb5 $1 {[%emt 0:00:22]} Bc8 {[%emt 0:01:01]} 53. Be2+ {[%emt 0:02:25]} Kg5 {[%emt 0:01:51]} 54. Bxh5 {[%emt 0:00:09]} Kxh5 {[%emt 0:00:36]} 55. Ke2 {[%emt 0:00:01]} Kg5 {[%emt 0:00:28] [#] ( -> ...Kf4)} 56. Kxe3 {[%emt 0:00:01] Weighted Error Value: White=0.46/Black=0.13 (very precise) .  Loses game:     	White=1     	---        Mistake:       	White=4     	Black=5      Inaccurate:     	White=5     	Black=2      OK:         	White=18    	Black=13     Best:        	White=1     	Black=2      Strong:       	---       	Black=2} 1/2-1/2

[Event "360 One Wealth GP-3 2024"]
[Site "Mumbai"]
[Date "2024.02.08"]
[Round "4.2"]
[White "Bartakke, Amardeep S."]
[Black "Ishaan A Tendolkar"]
[Result "1-0"]
[ECO "B18"]
[WhiteElo "1961"]
[BlackElo "1451"]
[Annotator "TA"]
[PlyCount "77"]
[EventDate "2024.02.04"]
[EventType "swiss"]
[EventCountry "IND"]
[SourceTitle "playchess.com"]
[Source "ChessBase"]
[SourceQuality "1"]
[TimeControl "5400+30"]

{[%evp 15,76,-6,26,-8,0,-30,18,19,20,0,3,0,0,0,0,-8,-9,-11,-8,-33,-22,-39,18,-35,0,1,6,0,0,0,0,0,307,287,841,824,6789,6789,4890,6306,6291,6170,29990,29990,29990,29991,29991,29992,29992,29993,29993,29994,29994,29995,29995,29996,29996,29997,29997,29998,29998,29999,29999]} 1. e4 c6 2. d4 d5 3. Nd2 dxe4 4. Nxe4 Bf5 5. Ng3 Bg6 6. Bc4 e6 7. N1e2 Nd7 8. O-O Ngf6 9. f4 Nb6 10. Bb3 Bd6 (10... Qd7 {feels stronger.}) 11. f5 {The position is equal.} exf5 12. Nxf5 O-O 13. Nxd6 Qxd6 14. Bf4 Qd7 15. Ng3 Nbd5 16. Bg5 h6 17. Bd2 Rfe8 18. Qf3 Qg4 (18... b5 $15) 19. Qf2 ({Better is} 19. Qxg4 $11 Nxg4 20. c4) 19... h5 {[#] Strongly threatening ...h4.} 20. h3 Qd7 {...h4 is the strong threat.} 21. c4 {[%cal Bc2c4,Bc4d5,Bd5c6,Bc6b7][%mdl 32]} h4 22. cxd5 hxg3 23. Qxg3 {[#] Black must now prevent dxc6.} Ne4 $2 {[%mdl 8192] White now steadily converts the win.} (23... cxd5 $11 {and Black is okay.} 24. Qf3 a5) 24. Qxg6 $1 $18 Nxd2 $2 (24... cxd5 25. Qf5 Qxf5 26. Rxf5 Nxd2 27. Bxd5 g6) 25. dxc6 Qxd4+ 26. Kh1 Nxb3 27. Qxf7+ (27. Rxf7 $2 {perishes.} Nxa1 28. Rf1 Rf8 (28... Qxb2 29. Qf7+ Kh8 30. Qh5+ Kg8 31. Qf7+ Kh8 32. Qh5+ Kg8 33. Qd5+ Kh8 34. Qh5+ $11) 29. Rxa1 bxc6 $19 (29... Qxb2 $2 30. Qe6+ Kh8 31. Re1 $19)) 27... Kh8 28. axb3 ({Less strong is} 28. Qxb3 bxc6 29. Rad1 Qe4 $16) 28... Qxb2 29. cxb7 {White mates.} Rab8 30. Ra4 {[%cal Ba1a4,Ba4h4,Bh4g4,Bg4g6][%mdl 32]} g5 31. Qh5+ Kg8 32. Qxg5+ Qg7 33. Qd5+ Kh8 34. Rh4+ Qh7 35. Qd4+ Re5 36. Qxe5+ Kg8 37. Rg4+ Qg6 38. Rxg6+ Kh7 {[%emt 1:49:30]} 39. Qh5# {Weighted Error Value: White=0.08 (flawless) /Black=0.66.  Loses game:     	---       	Black=1      Mistake:       	White=1     	Black=3      Inaccurate:     	White=1     	Black=2      OK:         	White=2     	Black=8      Best:        	White=3     	---        Strong:       	White=1     	---} 1-0